[Event "Late-Titled-Tuesday-Blitz-April-16-2024"]
[Site "Chess.com"]
[Date "2024.04.16"]
[Round "3"]
[White "Franmu14"]
[Black "egnfanclub"]
[Result "1-0"]
[WhiteElo "2721"]
[BlackElo "2368"]
[TimeControl "180+1"]
[EndTime "14:28:44 PDT"]
[Termination "Franmu14 won by resignation"]

1. e4 {[%clk 0:03:00.9]} 1... e5 {[%clk 0:03:00]} 2. Nc3 {[%clk 0:03:01.8]} 2...
Nf6 {[%clk 0:02:59.6]} 3. Nf3 {[%clk 0:03:01.4]} 3... Nc6 {[%clk 0:02:59.5]} 4.
Bb5 {[%clk 0:03:01.9]} 4... Bd6 {[%clk 0:02:57.9]} 5. Bxc6 {[%clk 0:03:01.5]}
5... dxc6 {[%clk 0:02:58.8]} 6. d3 {[%clk 0:03:01.9]} 6... O-O {[%clk
0:02:58.4]} 7. h3 {[%clk 0:03:02.8]} 7... h6 {[%clk 0:02:58.1]} 8. Be3 {[%clk
0:03:03.4]} 8... b5 {[%clk 0:02:57.1]} 9. Ne2 {[%clk 0:03:03.8]} 9... c5 {[%clk
0:02:47.7]} 10. g4 {[%clk 0:03:03.8]} 10... Nh7 {[%clk 0:02:23.5]} 11. Qd2
{[%clk 0:03:01.9]} 11... f6 {[%clk 0:02:20.5]} 12. Ng3 {[%clk 0:02:59.9]} 12...
Be6 {[%clk 0:02:09.3]} 13. Nf5 {[%clk 0:02:59]} 13... Qd7 {[%clk 0:02:07.3]} 14.
h4 {[%clk 0:02:56.3]} 14... c4 {[%clk 0:01:55.8]} 15. dxc4 {[%clk 0:02:53.6]}
15... Bxc4 {[%clk 0:01:49.6]} 16. b3 {[%clk 0:02:43.2]} 16... Be6 {[%clk
0:01:49.2]} 17. O-O-O {[%clk 0:02:34.9]} 17... Ba3+ {[%clk 0:01:44.6]} 18. Kb1
{[%clk 0:02:34.4]} 18... Qxd2 {[%clk 0:01:44.5]} 19. Rxd2 {[%clk 0:02:30.6]}
19... Rfd8 {[%clk 0:01:45.2]} 20. Rhd1 {[%clk 0:02:29.5]} 20... Rxd2 {[%clk
0:01:44.2]} 21. Rxd2 {[%clk 0:02:29.6]} 21... a5 {[%clk 0:01:30.8]} 22. g5
{[%clk 0:02:23.7]} 22... hxg5 {[%clk 0:01:29.8]} 23. hxg5 {[%clk 0:02:24.6]}
23... a4 {[%clk 0:01:27.2]} 24. gxf6 {[%clk 0:02:20.4]} 24... Nxf6 {[%clk
0:01:24.2]} 25. Ng5 {[%clk 0:01:50.7]} 25... Nxe4 {[%clk 0:01:14.7]} 26. Nxe6
{[%clk 0:01:49.5]} 26... Nxd2+ {[%clk 0:01:14.6]} 27. Bxd2 {[%clk 0:01:50.2]}
27... axb3 {[%clk 0:01:07.8]} 28. cxb3 {[%clk 0:01:44.4]} 28... Kf7 {[%clk
0:01:08.2]} 29. Nxc7 {[%clk 0:01:11]} 29... Rd8 {[%clk 0:01:06.3]} 30. Be3
{[%clk 0:01:07.1]} 30... Rd1+ {[%clk 0:01:02.6]} 31. Kc2 {[%clk 0:01:06.1]}
31... Ra1 {[%clk 0:01:03.2]} 32. Nxb5 {[%clk 0:01:06.3]} 32... Rxa2+ {[%clk
0:01:03]} 33. Kd3 {[%clk 0:01:07]} 33... Bf8 {[%clk 0:00:55.8]} 34. Nfd6+ {[%clk
0:01:03.5]} 34... Ke6 {[%clk 0:00:54.7]} 35. Ne4 {[%clk 0:01:03.3]} 35... Be7
{[%clk 0:00:48.4]} 36. Nbc3 {[%clk 0:01:02.6]} 36... Rb2 {[%clk 0:00:45.7]} 37.
Nd2 {[%clk 0:01:00.7]} 37... Bb4 {[%clk 0:00:39.2]} 38. Na4 {[%clk 0:00:59.8]}
38... Ra2 {[%clk 0:00:33.7]} 39. Ne4 {[%clk 0:00:58]} 39... Kf5 {[%clk
0:00:28.9]} 40. Nac5 {[%clk 0:00:52]} 40... g5 {[%clk 0:00:24.1]} 41. Kc4 {[%clk
0:00:52.2]} 41... Be1 {[%clk 0:00:23.6]} 42. b4 {[%clk 0:00:48.6]} 42... g4
{[%clk 0:00:24]} 43. b5 {[%clk 0:00:48.8]} 43... Rc2+ {[%clk 0:00:22.2]} 44. Kd5
{[%clk 0:00:47.5]} 44... Rb2 {[%clk 0:00:21.3]} 45. Kc6 {[%clk 0:00:47.8]} 45...
Ba5 {[%clk 0:00:20.5]} 46. Nd6+ {[%clk 0:00:48]} 46... Kg6 {[%clk 0:00:18.1]}
47. Nc4 {[%clk 0:00:48.7]} 47... Ra2 {[%clk 0:00:16.3]} 48. Nxe5+ {[%clk
0:00:34.2]} 48... Kf5 {[%clk 0:00:15.7]} 49. Nc4 {[%clk 0:00:34.9]} 49... Bd8
{[%clk 0:00:14.5]} 50. Nb7 {[%clk 0:00:32.3]} 50... Bf6 {[%clk 0:00:11.6]} 51.
b6 {[%clk 0:00:32.6]} 51... g3 {[%clk 0:00:10.4]} 52. Nbd6+ {[%clk 0:00:32.3]}
52... Ke6 {[%clk 0:00:10.1]} 53. fxg3 {[%clk 0:00:32.1]} 53... Be5 {[%clk
0:00:09.5]} 54. Bf4 {[%clk 0:00:30]} 54... Bxd6 {[%clk 0:00:08.4]} 55. Nxd6
{[%clk 0:00:25.1]} 55... Rc2+ {[%clk 0:00:07.2]} 56. Kb7 {[%clk 0:00:25.3]}
56... Kd5 {[%clk 0:00:07.7]} 57. Nc8 {[%clk 0:00:20.4]} 57... Ra2 {[%clk
0:00:06.6]} 58. Ne7+ {[%clk 0:00:19.4]} 58... Ke6 {[%clk 0:00:07]} 59. Nc6
{[%clk 0:00:20.1]} 59... Kd5 {[%clk 0:00:06.4]} 60. Nb4+ {[%clk 0:00:20]} 1-0

[Event "Late-Titled-Tuesday-Blitz-April-16-2024"]
[Site "Chess.com"]
[Date "2024.04.16"]
[Round "3"]
[White "cansun"]
[Black "akanga001"]
[Result "0-1"]
[WhiteElo "2364"]
[BlackElo "2125"]
[TimeControl "180+1"]
[EndTime "14:28:50 PDT"]
[Termination "akanga001 won by resignation"]

1. e4 {[%clk 0:03:00.9]} 1... e6 {[%clk 0:01:30.9]} 2. d4 {[%clk 0:02:59.6]}
2... d5 {[%clk 0:01:31.8]} 3. e5 {[%clk 0:02:59.7]} 3... c5 {[%clk 0:01:31.4]}
4. c3 {[%clk 0:03:00]} 4... Ne7 {[%clk 0:01:30.6]} 5. Nf3 {[%clk 0:02:52.3]}
5... Nec6 {[%clk 0:01:30.6]} 6. a3 {[%clk 0:02:38.5]} 6... a5 {[%clk 0:01:31]}
7. Bd3 {[%clk 0:02:32.8]} 7... b6 {[%clk 0:01:29.2]} 8. O-O {[%clk 0:02:30.5]}
8... Ba6 {[%clk 0:01:28.5]} 9. Bg5 {[%clk 0:02:19.6]} 9... Qd7 {[%clk
0:01:26.5]} 10. Re1 {[%clk 0:02:15.5]} 10... Bxd3 {[%clk 0:01:23.9]} 11. Qxd3
{[%clk 0:02:16.2]} 11... cxd4 {[%clk 0:01:18.5]} 12. cxd4 {[%clk 0:02:15.3]}
12... Na7 {[%clk 0:01:17.3]} 13. a4 {[%clk 0:02:07.2]} 13... Nbc6 {[%clk
0:01:15.9]} 14. Nc3 {[%clk 0:02:06.3]} 14... Nb4 {[%clk 0:01:16.1]} 15. Qe2
{[%clk 0:02:04.5]} 15... Rc8 {[%clk 0:01:10.7]} 16. Rec1 {[%clk 0:02:02.8]}
16... h6 {[%clk 0:01:10.4]} 17. Bd2 {[%clk 0:01:59.4]} 17... Be7 {[%clk
0:01:07.9]} 18. Ne1 {[%clk 0:01:55.6]} 18... O-O {[%clk 0:01:06.2]} 19. Nd3
{[%clk 0:01:52.1]} 19... Nac6 {[%clk 0:01:01.6]} 20. Nb5 {[%clk 0:01:49.5]}
20... Nxd3 {[%clk 0:00:53]} 21. Qxd3 {[%clk 0:01:49.6]} 21... Bb4 {[%clk
0:00:51.2]} 22. h3 {[%clk 0:01:18.1]} 22... Bxd2 {[%clk 0:00:48.9]} 23. Qxd2
{[%clk 0:01:16.4]} 23... Nb4 {[%clk 0:00:49.8]} 24. Nd6 {[%clk 0:01:13.9]} 24...
Rxc1+ {[%clk 0:00:41.2]} 25. Rxc1 {[%clk 0:01:13.1]} 25... f6 {[%clk 0:00:41.7]}
26. f4 {[%clk 0:01:11.3]} 26... fxe5 {[%clk 0:00:40.7]} 27. fxe5 {[%clk
0:01:12]} 27... Qe7 {[%clk 0:00:35.6]} 28. Rf1 {[%clk 0:00:43.7]} 28... Rxf1+
{[%clk 0:00:33.4]} 29. Kxf1 {[%clk 0:00:44.2]} 29... Qh4 {[%clk 0:00:33.4]} 30.
Nc8 {[%clk 0:00:33.6]} 30... Qd8 {[%clk 0:00:30.1]} 31. Qc3 {[%clk 0:00:27.8]}
31... Nd3 {[%clk 0:00:22.9]} 32. Nd6 {[%clk 0:00:21.6]} 32... Nb4 {[%clk
0:00:17.8]} 33. Qf3 {[%clk 0:00:20.7]} 33... Kh7 {[%clk 0:00:16.2]} 34. Qg4
{[%clk 0:00:19]} 34... Qd7 {[%clk 0:00:13.7]} 35. Qf3 {[%clk 0:00:15.4]} 35...
Qxa4 {[%clk 0:00:11.7]} 36. Qf7 {[%clk 0:00:14.3]} 36... Qa1+ {[%clk 0:00:11.3]}
37. Kf2 {[%clk 0:00:15]} 37... Qxb2+ {[%clk 0:00:12.1]} 38. Kg3 {[%clk
0:00:15.5]} 38... Qc3+ {[%clk 0:00:11.4]} 39. Kh2 {[%clk 0:00:16]} 39... Qxd4
{[%clk 0:00:10.3]} 40. Qxe6 {[%clk 0:00:16.7]} 40... Qf4+ {[%clk 0:00:09.4]} 41.
Kg1 {[%clk 0:00:16.5]} 41... Nd3 {[%clk 0:00:09.1]} 42. Qf5+ {[%clk 0:00:06.5]}
42... Qxf5 {[%clk 0:00:09.1]} 43. Nxf5 {[%clk 0:00:07.2]} 43... Nxe5 {[%clk
0:00:09.7]} 44. Ne3 {[%clk 0:00:07.8]} 44... a4 {[%clk 0:00:10.1]} 45. Nxd5
{[%clk 0:00:07.7]} 45... a3 {[%clk 0:00:10.7]} 46. Nb4 {[%clk 0:00:06]} 46... b5
{[%clk 0:00:10.7]} 47. Kf2 {[%clk 0:00:06.2]} 47... Nd3+ {[%clk 0:00:09.1]} 48.
Ke3 {[%clk 0:00:01.7]} 48... Nxb4 {[%clk 0:00:07.5]} 49. Kd2 {[%clk 0:00:02.6]}
49... a2 {[%clk 0:00:08.1]} 0-1

[Event "Late-Titled-Tuesday-Blitz-April-16-2024"]
[Site "Chess.com"]
[Date "2024.04.16"]
[Round "3"]
[White "MeisterJabo"]
[Black "Meri-Arabidze"]
[Result "1-0"]
[WhiteElo "2495"]
[BlackElo "2661"]
[TimeControl "180+1"]
[EndTime "14:28:55 PDT"]
[Termination "MeisterJabo won on time"]

1. c4 {[%clk 0:03:00.9]} 1... e6 {[%clk 0:02:59.4]} 2. Nf3 {[%clk 0:02:59.7]}
2... d5 {[%clk 0:02:59.5]} 3. g3 {[%clk 0:02:59.9]} 3... Nf6 {[%clk 0:02:59.9]}
4. Bg2 {[%clk 0:02:59.9]} 4... dxc4 {[%clk 0:03:00.6]} 5. Qa4+ {[%clk
0:02:59.1]} 5... Nbd7 {[%clk 0:03:00.9]} 6. Qxc4 {[%clk 0:02:59.1]} 6... c5
{[%clk 0:03:01.6]} 7. O-O {[%clk 0:02:58.6]} 7... b6 {[%clk 0:03:01.7]} 8. d4
{[%clk 0:02:53.7]} 8... Bb7 {[%clk 0:02:59.4]} 9. Rd1 {[%clk 0:02:53.3]} 9...
Rc8 {[%clk 0:02:58.3]} 10. Nc3 {[%clk 0:02:53.4]} 10... Be7 {[%clk 0:02:55.1]}
11. Bf4 {[%clk 0:02:53.6]} 11... O-O {[%clk 0:02:53.6]} 12. Rac1 {[%clk
0:02:52.8]} 12... a6 {[%clk 0:02:49.3]} 13. Qb3 {[%clk 0:02:50.9]} 13... b5
{[%clk 0:02:47.3]} 14. dxc5 {[%clk 0:02:49.5]} 14... Bxc5 {[%clk 0:02:46.9]} 15.
Bd6 {[%clk 0:02:20.6]} 15... Bxd6 {[%clk 0:02:43.4]} 16. Rxd6 {[%clk 0:02:21.5]}
16... Qe7 {[%clk 0:02:32.6]} 17. Rcd1 {[%clk 0:02:21]} 17... Nd5 {[%clk
0:02:27.4]} 18. Rxd7 {[%clk 0:01:34.9]} 18... Qxd7 {[%clk 0:02:22.5]} 19. e4
{[%clk 0:01:35.2]} 19... b4 {[%clk 0:02:02.7]} 20. Na4 {[%clk 0:01:12.4]} 20...
Bc6 {[%clk 0:00:44.5]} 21. Nb6 {[%clk 0:01:09.5]} 21... Nxb6 {[%clk 0:00:42.3]}
22. Rxd7 {[%clk 0:01:10.4]} 22... Bxd7 {[%clk 0:00:37.3]} 23. h4 {[%clk
0:01:00]} 23... a5 {[%clk 0:00:35.4]} 24. Ne5 {[%clk 0:00:57.3]} 24... Bb5
{[%clk 0:00:32.6]} 25. Kh2 {[%clk 0:00:38.5]} 25... h6 {[%clk 0:00:32]} 26. Bh3
{[%clk 0:00:36.6]} 26... Nc4 {[%clk 0:00:28.3]} 27. Nxf7 {[%clk 0:00:23.1]}
27... Kxf7 {[%clk 0:00:26.9]} 28. Qf3+ {[%clk 0:00:13.9]} 28... Ke7 {[%clk
0:00:25.5]} 29. Qg4 {[%clk 0:00:14.5]} 29... Bd7 {[%clk 0:00:07.9]} 30. b3
{[%clk 0:00:12.1]} 30... Nd6 {[%clk 0:00:05.3]} 31. Qxg7+ {[%clk 0:00:09.6]}
31... Rf7 {[%clk 0:00:05.8]} 32. Qxh6 {[%clk 0:00:09.6]} 32... Rxf2+ {[%clk
0:00:06]} 33. Kg1 {[%clk 0:00:10.1]} 33... Rf6 {[%clk 0:00:05.1]} 34. Qg7+
{[%clk 0:00:09.1]} 34... Rf7 {[%clk 0:00:05.5]} 35. Qg5+ {[%clk 0:00:09.2]}
35... Kf8 {[%clk 0:00:06]} 36. e5 {[%clk 0:00:06.2]} 36... Nf5 {[%clk
0:00:04.6]} 37. h5 {[%clk 0:00:05]} 37... Rc2 {[%clk 0:00:03.8]} 38. h6 {[%clk
0:00:04.3]} 38... Rxa2 {[%clk 0:00:04]} 39. Bxf5 {[%clk 0:00:02.2]} 39... exf5
{[%clk 0:00:03.3]} 40. Qd8+ {[%clk 0:00:02.6]} 40... Be8 {[%clk 0:00:03.6]} 41.
Qd6+ {[%clk 0:00:03.1]} 41... Kg8 {[%clk 0:00:03.6]} 42. Qg6+ {[%clk 0:00:02.7]}
42... Kf8 {[%clk 0:00:03.8]} 43. h7 {[%clk 0:00:03]} 43... Rxh7 {[%clk
0:00:04.2]} 44. Qxh7 {[%clk 0:00:03.9]} 44... Ra1+ {[%clk 0:00:04.4]} 45. Kg2
{[%clk 0:00:04.3]} 45... a4 {[%clk 0:00:04.2]} 46. Qxf5+ {[%clk 0:00:04.5]}
46... Ke7 {[%clk 0:00:03.8]} 47. Qf6+ {[%clk 0:00:05.1]} 47... Kd7 {[%clk
0:00:03.4]} 48. Qd6+ {[%clk 0:00:06]} 48... Kc8 {[%clk 0:00:03.5]} 49. Qxb4
{[%clk 0:00:06.5]} 49... a3 {[%clk 0:00:03.3]} 50. Qc5+ {[%clk 0:00:06.7]} 50...
Kd8 {[%clk 0:00:03.5]} 51. Qd6+ {[%clk 0:00:06.8]} 51... Kc8 {[%clk 0:00:03.9]}
52. Qc5+ {[%clk 0:00:07.4]} 52... Kd8 {[%clk 0:00:04.4]} 53. Qd4+ {[%clk
0:00:07.9]} 53... Kc8 {[%clk 0:00:05.1]} 54. Qxa1 {[%clk 0:00:08.8]} 54... Bc6+
{[%clk 0:00:04.9]} 55. Kf2 {[%clk 0:00:08.7]} 1-0

[Event "Late-Titled-Tuesday-Blitz-April-16-2024"]
[Site "Chess.com"]
[Date "2024.04.16"]
[Round "3"]
[White "NMJeevanK"]
[Black "PhileKhoob"]
[Result "1-0"]
[WhiteElo "2560"]
[BlackElo "2303"]
[TimeControl "180+1"]
[EndTime "14:28:57 PDT"]
[Termination "NMJeevanK won on time"]

1. e4 {[%clk 0:03:00.9]} 1... c6 {[%clk 0:03:00.3]} 2. d4 {[%clk 0:03:00]} 2...
d5 {[%clk 0:03:00.5]} 3. exd5 {[%clk 0:03:00.9]} 3... cxd5 {[%clk 0:03:01.3]} 4.
Bd3 {[%clk 0:03:01.6]} 4... Nc6 {[%clk 0:03:00.8]} 5. c3 {[%clk 0:03:02.3]} 5...
Nf6 {[%clk 0:03:01.2]} 6. Bf4 {[%clk 0:03:00.8]} 6... Bg4 {[%clk 0:02:58.6]} 7.
Qb3 {[%clk 0:03:01.3]} 7... Qd7 {[%clk 0:02:57.5]} 8. Nd2 {[%clk 0:03:01.2]}
8... e6 {[%clk 0:02:57.8]} 9. Ngf3 {[%clk 0:03:01.6]} 9... Bd6 {[%clk
0:02:58.1]} 10. Bxd6 {[%clk 0:03:01.5]} 10... Qxd6 {[%clk 0:02:58.1]} 11. O-O
{[%clk 0:03:02.2]} 11... O-O {[%clk 0:02:58]} 12. Rfe1 {[%clk 0:03:01.8]} 12...
Rab8 {[%clk 0:02:52.9]} 13. a4 {[%clk 0:03:01.1]} 13... a6 {[%clk 0:02:49.4]}
14. Ne5 {[%clk 0:02:57.9]} 14... Rfc8 {[%clk 0:02:43.4]} 15. a5 {[%clk
0:02:50.6]} 15... Qc7 {[%clk 0:02:40.8]} 16. Nxg4 {[%clk 0:02:46.7]} 16... Nxg4
{[%clk 0:02:41.7]} 17. Nf3 {[%clk 0:02:46.7]} 17... Nxa5 {[%clk 0:02:37]} 18.
Qc2 {[%clk 0:02:45.6]} 18... Nf6 {[%clk 0:02:36]} 19. Ne5 {[%clk 0:02:41.6]}
19... Nc6 {[%clk 0:02:34.2]} 20. Qd2 {[%clk 0:02:37]} 20... Rd8 {[%clk
0:02:17.1]} 21. Qg5 {[%clk 0:02:28]} 21... h6 {[%clk 0:02:08.7]} 22. Qh4 {[%clk
0:02:26.2]} 22... Nxe5 {[%clk 0:01:55.2]} 23. dxe5 {[%clk 0:02:22.2]} 23... Ne4
{[%clk 0:01:54.9]} 24. Bxe4 {[%clk 0:02:21.3]} 24... dxe4 {[%clk 0:01:55.8]} 25.
Qxe4 {[%clk 0:02:18]} 25... Rd2 {[%clk 0:01:53.7]} 26. Qb4 {[%clk 0:02:06.1]}
26... Rbd8 {[%clk 0:01:51.4]} 27. h3 {[%clk 0:02:02.2]} 27... Rc2 {[%clk
0:01:47.4]} 28. Rad1 {[%clk 0:01:54.3]} 28... Rxd1 {[%clk 0:01:43.3]} 29. Rxd1
{[%clk 0:01:55.2]} 29... Qxe5 {[%clk 0:01:42.9]} 30. Qxb7 {[%clk 0:01:53]} 30...
Qf5 {[%clk 0:01:18.5]} 31. Rf1 {[%clk 0:01:45.8]} 31... a5 {[%clk 0:01:17.1]}
32. b4 {[%clk 0:01:42.9]} 32... Rxc3 {[%clk 0:01:15.2]} 33. Qa8+ {[%clk
0:01:42.4]} 33... Kh7 {[%clk 0:01:14.6]} 34. bxa5 {[%clk 0:01:42.9]} 34... Ra3
{[%clk 0:01:14.5]} 35. a6 {[%clk 0:01:43.4]} 35... Qc5 {[%clk 0:00:41.7]} 36.
Qb7 {[%clk 0:01:39]} 36... Kg6 {[%clk 0:00:37]} 37. Rd1 {[%clk 0:01:11.9]} 37...
h5 {[%clk 0:00:32.1]} 38. Qe4+ {[%clk 0:01:05.2]} 38... Kh6 {[%clk 0:00:27.8]}
39. Qf4+ {[%clk 0:01:04.6]} 39... Kg6 {[%clk 0:00:26.2]} 40. Rd7 {[%clk
0:00:54.7]} 40... Ra1+ {[%clk 0:00:08.1]} 41. Kh2 {[%clk 0:00:54.9]} 41... Qf5
{[%clk 0:00:03.7]} 42. Qg3+ {[%clk 0:00:50.6]} 42... Qg5 {[%clk 0:00:02.6]} 43.
Qxg5+ {[%clk 0:00:37.2]} 43... Kxg5 {[%clk 0:00:03.5]} 44. Rxf7 {[%clk
0:00:37.5]} 44... Kg6 {[%clk 0:00:02.8]} 45. Ra7 {[%clk 0:00:37.4]} 45... Kf6
{[%clk 0:00:02.6]} 46. Kg3 {[%clk 0:00:36.8]} 46... Ra3+ {[%clk 0:00:01.9]} 47.
f3 {[%clk 0:00:37.1]} 47... g5 {[%clk 0:00:01.3]} 48. Ra8 {[%clk 0:00:35.5]}
48... Ra4 {[%clk 0:00:01.4]} 49. Kf2 {[%clk 0:00:33.8]} 49... Kg7 {[%clk
0:00:01.6]} 50. g4 {[%clk 0:00:32.9]} 50... Ra2+ {[%clk 0:00:02]} 51. Ke3 {[%clk
0:00:33.1]} 51... h4 {[%clk 0:00:02.5]} 52. Ke4 {[%clk 0:00:33.5]} 52... Ra3
{[%clk 0:00:02.4]} 53. Ke5 {[%clk 0:00:29]} 53... Re3+ {[%clk 0:00:02.8]} 54.
Kd6 {[%clk 0:00:28.5]} 54... Rxf3 {[%clk 0:00:03.2]} 55. a7 {[%clk 0:00:29.1]}
55... Rd3+ {[%clk 0:00:03.3]} 56. Kxe6 {[%clk 0:00:29.4]} 56... Ra3 {[%clk
0:00:03.9]} 57. Kd6 {[%clk 0:00:28.7]} 57... Ra6+ {[%clk 0:00:03.8]} 58. Kc7
{[%clk 0:00:28.8]} 58... Ra1 {[%clk 0:00:04.2]} 59. Kd6 {[%clk 0:00:27.4]} 59...
Ra6+ {[%clk 0:00:03.3]} 60. Ke5 {[%clk 0:00:27.7]} 60... Ra5+ {[%clk 0:00:03.6]}
61. Kd4 {[%clk 0:00:28.2]} 61... Ra4+ {[%clk 0:00:03.8]} 62. Kc5 {[%clk
0:00:28.9]} 62... Ra5+ {[%clk 0:00:02.8]} 63. Kb6 {[%clk 0:00:29.3]} 63... Ra1
{[%clk 0:00:03]} 64. Rd8 {[%clk 0:00:27.8]} 64... Rb1+ {[%clk 0:00:03]} 65. Kc5
{[%clk 0:00:28.2]} 65... Rc1+ {[%clk 0:00:02.5]} 66. Kb4 {[%clk 0:00:28.6]}
66... Rb1+ {[%clk 0:00:02.6]} 67. Kc3 {[%clk 0:00:29]} 67... Rc1+ {[%clk
0:00:02.1]} 68. Kb2 {[%clk 0:00:29.2]} 1-0

[Event "Late-Titled-Tuesday-Blitz-April-16-2024"]
[Site "Chess.com"]
[Date "2024.04.16"]
[Round "3"]
[White "Mihajlovskij"]
[Black "Doublekk14"]
[Result "0-1"]
[WhiteElo "2186"]
[BlackElo "2396"]
[TimeControl "180+1"]
[EndTime "14:28:59 PDT"]
[Termination "Doublekk14 won by resignation"]

1. e4 {[%clk 0:02:57.2]} 1... c5 {[%clk 0:02:56.5]} 2. Nf3 {[%clk 0:02:55.7]}
2... e6 {[%clk 0:02:55.7]} 3. d4 {[%clk 0:02:55.6]} 3... cxd4 {[%clk 0:02:53.2]}
4. Nxd4 {[%clk 0:02:56.5]} 4... Nf6 {[%clk 0:02:53.5]} 5. Nc3 {[%clk 0:02:54.5]}
5... Nc6 {[%clk 0:02:53.1]} 6. Nxc6 {[%clk 0:02:54.2]} 6... bxc6 {[%clk
0:02:48.8]} 7. e5 {[%clk 0:02:54.7]} 7... Nd5 {[%clk 0:02:48.8]} 8. Ne4 {[%clk
0:02:55.6]} 8... f5 {[%clk 0:02:48.8]} 9. Nd6+ {[%clk 0:02:53.2]} 9... Bxd6
{[%clk 0:02:45.3]} 10. exd6 {[%clk 0:02:54.1]} 10... O-O {[%clk 0:02:32.9]} 11.
c4 {[%clk 0:02:53]} 11... Nf6 {[%clk 0:02:31.2]} 12. Be2 {[%clk 0:02:44.2]}
12... c5 {[%clk 0:02:10.4]} 13. Bf3 {[%clk 0:02:37.3]} 13... Rb8 {[%clk
0:02:02]} 14. O-O {[%clk 0:02:37]} 14... Bb7 {[%clk 0:01:54.6]} 15. b3 {[%clk
0:02:37.3]} 15... Bxf3 {[%clk 0:01:51.8]} 16. Qxf3 {[%clk 0:02:38.2]} 16... Rb6
{[%clk 0:01:51.9]} 17. Rd1 {[%clk 0:02:36.8]} 17... Ne4 {[%clk 0:01:51.5]} 18.
Bf4 {[%clk 0:02:17.5]} 18... Qf6 {[%clk 0:01:47.8]} 19. Be3 {[%clk 0:02:07.8]}
19... Rc8 {[%clk 0:01:39]} 20. h3 {[%clk 0:01:53.3]} 20... Rxd6 {[%clk
0:01:36.7]} 21. Rxd6 {[%clk 0:01:53.2]} 21... Nxd6 {[%clk 0:01:31.1]} 22. Rd1
{[%clk 0:01:52.9]} 22... Rc6 {[%clk 0:01:24.4]} 23. Bxc5 {[%clk 0:01:29.3]}
23... Rxc5 {[%clk 0:01:18.7]} 24. Rxd6 {[%clk 0:01:27.5]} 24... Rc7 {[%clk
0:00:50.9]} 25. Qd1 {[%clk 0:01:26.6]} 25... Qe7 {[%clk 0:00:40.6]} 26. Qd4
{[%clk 0:01:25.9]} 26... Kf7 {[%clk 0:00:32.7]} 27. Kf1 {[%clk 0:01:22.5]} 27...
e5 {[%clk 0:00:25.6]} 28. Qd5+ {[%clk 0:01:22.6]} 28... Kf8 {[%clk 0:00:22]} 29.
Ke2 {[%clk 0:01:11.6]} 29... g6 {[%clk 0:00:21.7]} 30. Kd1 {[%clk 0:01:08.8]}
30... e4 {[%clk 0:00:18.7]} 31. Qd4 {[%clk 0:01:07.9]} 31... Qg7 {[%clk
0:00:16.2]} 32. Rf6+ {[%clk 0:01:04]} 32... Kg8 {[%clk 0:00:13.4]} 33. Qd5+
{[%clk 0:01:01.6]} 33... Kh8 {[%clk 0:00:13.4]} 34. Qe5 {[%clk 0:00:50]} 34...
Rc8 {[%clk 0:00:12.4]} 35. Kc2 {[%clk 0:00:46.2]} 35... h5 {[%clk 0:00:10.7]}
36. Qd6 {[%clk 0:00:46.1]} 36... Rg8 {[%clk 0:00:10.1]} 37. h4 {[%clk
0:00:43.2]} 37... Kh7 {[%clk 0:00:09]} 38. g3 {[%clk 0:00:37]} 38... Re8 {[%clk
0:00:08.7]} 39. Kd2 {[%clk 0:00:29]} 39... Re6 {[%clk 0:00:08]} 40. Rxe6 {[%clk
0:00:26]} 40... dxe6 {[%clk 0:00:08.2]} 41. Ke3 {[%clk 0:00:18]} 41... Qc3+
{[%clk 0:00:05.9]} 42. Kf4 {[%clk 0:00:18.2]} 42... e5+ {[%clk 0:00:04.1]} 43.
Kg5 {[%clk 0:00:14.9]} 43... Qc1+ {[%clk 0:00:02.8]} 44. Kf6 {[%clk 0:00:14.7]}
44... Qh6 {[%clk 0:00:02]} 45. Qe7+ {[%clk 0:00:12.9]} 45... Kh8 {[%clk
0:00:02.2]} 46. Qe8+ {[%clk 0:00:11]} 46... Kh7 {[%clk 0:00:02.4]} 47. Qf7+
{[%clk 0:00:11.6]} 47... Kh8 {[%clk 0:00:02.1]} 48. Qxg6 {[%clk 0:00:11.4]}
48... Qxg6+ {[%clk 0:00:01.6]} 49. Kxg6 {[%clk 0:00:12.3]} 49... f4 {[%clk
0:00:01.9]} 50. Kf5 {[%clk 0:00:09.3]} 50... e3 {[%clk 0:00:02.1]} 51. gxf4
{[%clk 0:00:08.2]} 51... e2 {[%clk 0:00:02.2]} 52. fxe5 {[%clk 0:00:09.1]} 52...
e1=Q {[%clk 0:00:02.1]} 53. Kf6 {[%clk 0:00:10]} 53... Qxf2+ {[%clk 0:00:02.9]}
54. Ke7 {[%clk 0:00:10.2]} 54... Qe3 {[%clk 0:00:03.5]} 55. e6 {[%clk
0:00:11.1]} 55... Qe4 {[%clk 0:00:04.2]} 56. Kd7 {[%clk 0:00:12]} 56... Kg7
{[%clk 0:00:04.3]} 57. e7 {[%clk 0:00:12.9]} 57... Kf7 {[%clk 0:00:04.7]} 58.
Kd6 {[%clk 0:00:12.9]} 58... Qxe7+ {[%clk 0:00:05]} 0-1